fUSD/lending_fUSD_20241022
["ID","MTS","AMOUNT","RATE_DAILY","PERIOD"]
[340638036,1729578319853,115.00717414,9e-05,2]
[340638037,1729578329448,150.0,0.000101,2]
[340638038,1729578329469,150.0,0.000101,2]
[340638039,1729578329490,150.0,0.000101,2]
[340638040,1729578329511,150.0,0.000101,2]
[340638041,1729578329532,150.0,0.000101,2]
[340638042,1729578329552,165.88865864,0.000101,2]
[340638043,1729578329571,150.0,0.000101,2]
[340638044,1729578329592,48565.52496753,0.000101,2]
[340638045,1729578336237,150.0,9e-05,2]
[340638046,1729578336370,150.0,9e-05,2]
[340638047,1729578336395,150.0,9e-05,2]
[340638048,1729578336416,150.0,9e-05,2]
[340638049,1729578336438,150.0,9e-05,2]
[340638050,1729578336458,150.0,9e-05,2]
[340638051,1729578336478,150.0,9e-05,2]
[340638052,1729578336499,150.0,9e-05,2]
[340638053,1729578336520,150.0,9e-05,2]
[340638054,1729578336540,150.0,9e-05,2]
[340638055,1729578336560,150.0,9e-05,2]
[340638056,1729578336582,150.0,9e-05,2]
[340638057,1729578336603,150.0,9e-05,2]
[340638058,1729578336623,150.0,9e-05,2]
[340638059,1729578336645,150.0,9e-05,2]
[340638060,1729578336667,19750.0,9e-05,2]
[340638061,1729578355059,150.0,6.94e-05,2]
[340638062,1729578355079,150.0,6.94e-05,2]
[340638063,1729578355100,150.0,6.94e-05,2]
[340638064,1729578355120,150.0,6.94e-05,2]
[340638065,1729578355140,150.0,6.94e-05,2]
[340638066,1729578355160,150.0,6.94e-05,2]
[340638067,1729578355180,150.0,6.94e-05,2]
[340638068,1729578355200,150.0,6.94e-05,2]
[340638069,1729578355224,22834.3840687,6.94e-05,2]
[340638070,1729578362002,150.0,9e-05,2]
[340638071,1729578362022,11.44145798,9e-05,2]
[340638074,1729578438941,150.0,9.8e-05,2]
[340638075,1729578438962,55.0,9.8e-05,2]
[340638078,1729578463982,150.0,0.00010211,2]
[340638079,1729578464002,100.0,0.00010211,2]
[340638080,1729578478679,1449.35758556,0.0001,2]
[340638081,1729578516941,150.0,0.0001,2]
[340638082,1729578516962,62.30910014,0.0001,2]
[340638105,1729578631649,-1328.681,0.00010504,2]
[340638106,1729578631663,-1030.839,0.00010504,2]
[340638107,1729578631674,-250.0,0.00010516,2]
[340638108,1729578631687,-300.0,0.00010599,2]
[340638109,1729578631696,-150.0,0.00010599,2]
[340638110,1729578631705,-8831.0001,0.000106,2]
[340638111,1729578631714,-1000.0,0.000106,2]
[340638112,1729578631724,-3892.67420581,0.000106,2]
[340638113,1729578631810,-9091.01,0.000106,2]
[340638114,1729578631893,-583.5364902,0.000106,2]
[340638115,1729578631905,-17599.31462513,0.000106,2]
[340638122,1729578638345,-1101.8235462,0.000106,2]
[340638123,1729578638356,-1150.61,0.000106,2]
[340638126,1729578639763,-1452.25846956,0.000106,2]
[340638127,1729578639775,-414.57950001,0.000106,2]
[340638128,1729578639786,-283.76,0.000106,2]
[340638129,1729578639849,-4209.73518736,0.000106,2]
[340638130,1729578639860,-8947.21879473,0.000106,2]
[340638131,1729578639872,-8943.78386462,0.000106,2]
[340638132,1729578639883,-9077.54866152,0.000106,2]
[340638133,1729578639894,-8943.84023489,0.000106,2]
[340638134,1729578639905,-7855.18927003,0.000106,2]
[340638135,1729578640013,-1755.86857622,0.000106,2]
[340638136,1729578640025,-10397.25695412,0.000106,2]
[340638247,1729578641874,150.0,0.000125,3]
[340638248,1729578642708,-2519.36597863,0.000106,2]
[340638249,1729578642724,-1780.62564097,0.000106,2]
[340638250,1729578642735,-254.59739936,0.000107,2]
[340638251,1729578642746,-641.30445,0.000109,2]
[340638252,1729578642758,-830.95854713,0.000109,2]
[340638253,1729578643063,-968.10858019,0.000109,2]
[340638254,1729578643075,-5114.90416676,0.000109,2]
[340638255,1729578643090,-2385.09583324,0.000109,2]
[340638256,1729578643102,-828.86805204,0.000109,2]
[340638257,1729578643114,-557.98482753,0.000109,2]
[340638258,1729578643125,-698.12755613,0.00010916,2]
[340638259,1729578643139,-301.25385499,0.00010916,2]
[340638260,1729578643153,-2151.55353911,0.00010916,2]
[340638280,1729578645629,-514.9152,0.00010916,2]
[340638281,1729578645707,-2007.94984977,0.00010916,2]
[340638282,1729578645718,-165.21,0.00010959,2]
[340638283,1729578645728,-250.0,0.00010959,2]
[340638284,1729578645738,-1000.0,0.00010963,2]
[340638285,1729578645749,-294.10819062,0.00010999,2]
[340638286,1729578645761,-157.98529314,0.00010999,2]
[340638287,1729578645773,-4037.03940561,0.00011,2]
[340638288,1729578645789,-6222.99803238,0.00011,2]
[340638289,1729578645804,-356.34,0.00011,2]
[340638290,1729578645816,-341.44,0.00011,2]
[340638298,1729578645993,-2201133.31668169,0.00011,2]
[340638561,1729578663073,-150.0,0.00010495,2]
[340638563,1729578704622,-445.7348,0.000105,2]
[340638565,1729578755175,150.0,0.00010235,2]
[340638566,1729578755195,256.24226774,0.00010235,2]
[340638567,1729578755215,96.49773226,0.00010235,2]
[340638568,1729578768304,212.34,8.318e-05,2]
[340638569,1729578871116,150.0,0.0001,2]
[340638570,1729578871138,150.0,0.0001,2]
[340638571,1729578871158,150.0,0.0001,2]
[340638572,1729578871179,30497.1621418,0.0001,2]
[340638573,1729578891394,151.0,0.00010234,2]
[340638574,1729578952484,150.0,0.00010227,2]
[340638575,1729578952506,150.0,0.00010227,2]
[340638576,1729578952527,150.0,0.00010227,2]
[340638577,1729578952548,150.0,0.00010227,2]
[340638578,1729578952569,150.0,0.00010227,2]
[340638579,1729578952591,150.0,0.00010227,2]
[340638580,1729578952612,100.0,0.00010227,2]
[340638581,1729578952640,50.0,0.00010223,2]
[340638582,1729578952660,150.0,0.00010223,2]
[340638583,1729578952682,175.07145798,0.00010223,2]
[340638584,1729578952705,35654.15854202,0.00010223,2]
[340638585,1729578963157,250.0,0.00010227,2]
[340638586,1729579026965,1838.22,0.00010218,2]
[340638588,1729579075626,480.97,0.00010175,2]
[340638589,1729579115638,176.45,0.00010219,2]
[340638590,1729579169768,587.15,0.00010175,2]
[340638591,1729579173907,612.05,0.00010175,2]
[340638592,1729579202917,150.0,0.00010219,2]
[340638593,1729579204119,150.0,0.00010219,2]
[340638594,1729579204350,150.0,0.00010219,2]
[340638595,1729579204534,150.0,0.00010219,2]
[340638596,1729579204724,205.89617698,0.00010219,2]
[340638597,1729579265583,739.82,0.00010213,2]
[340638598,1729579265808,739.82,0.00010215,2]
[340638599,1729579266015,739.82,0.00010218,2]
[340638600,1729579266214,739.82,0.00010221,2]
[340638601,1729579266412,739.82,0.00010224,2]
[340638602,1729579266770,739.82,0.00010226,2]
[340638603,1729579266977,739.82,0.00010229,2]
[340638604,1729579267188,739.82,0.00010232,2]
[340638605,1729579267353,562.29,0.00010213,2]
[340638606,1729579267384,739.82,0.00010234,2]
[340638607,1729579267614,739.82,0.00010237,2]
[340638608,1729579267827,739.82,0.0001024,2]
[340638609,1729579268034,739.82,0.00010242,2]
[340638610,1729579268409,739.82,0.00010245,2]
[340638611,1729579268525,739.82,0.00010248,2]
[340638612,1729579268936,739.82,0.0001025,2]
[340638613,1729579269152,739.82,0.00010253,2]
[340638614,1729579269355,739.82,0.00010256,2]
[340638615,1729579269591,739.82,0.00010258,2]
[340638616,1729579269811,739.82,0.00010261,2]
[340638617,1729579270026,739.82,0.00010264,2]
[340638618,1729579298332,275.1,0.00010213,2]
[340638619,1729579305038,344.78,8.295e-05,2]
[340638620,1729579312388,514.92,0.00010186,2]
[340638621,1729579331307,150.0,0.00010186,2]
[340638622,1729579360451,23900.0,0.00010186,2]
[340638623,1729579385100,1051.14,0.00010213,2]
[340638624,1729579405255,239.7,0.00010213,2]
[340638625,1729579421704,250.0,0.00010215,2]
[340638626,1729579464631,250.0,0.00010213,2]
[340638627,1729579476084,200.0,0.00010231,2]
[340638628,1729579507754,425.42,0.00010231,2]
[340638629,1729579508145,-172.32534949,0.00010459,2]
[340638630,1729579539151,200.0,0.00010215,2]
[340638631,1729579561257,250.0,0.0001023,2]
[340638632,1729579588908,151.33,0.00010246,2]
[340638633,1729579623028,9519.41,0.00010323,2]
[340638634,1729579701418,306.02,0.00010231,2]
[340638640,1729579797429,327.54,8.345e-05,2]
[340638645,1729579831822,-1482.68010648,0.00010555,2]
[340638646,1729579831834,-320.97785352,0.00010555,2]
[340638647,1729579831845,-2077.0,0.00010567,2]
[340638648,1729579831855,-327.54,0.00010608,2]
[340638650,1729579831864,-300.0,0.00010899,2]
[340638652,1729579831874,-1000.0,0.000109,2]
[340638654,1729579831883,-500.0,0.000109,2]
[340638655,1729579831894,-60432.834,0.000109,2]
[340638656,1729579831903,-554.1069,0.000109,2]
[340638657,1729579831913,-3431.2352,0.000109,2]
[340638658,1729579831922,-5817.7490526,0.000109,2]
[340638659,1729579831935,-5580.5277474,0.000109,2]
[340638660,1729579831944,-214.3781,0.000109,2]
[340638661,1729579831954,-984.26828496,0.000109,2]
[340638662,1729579832013,-2003.00884502,0.000109,2]
[340638663,1729579832025,-1856.11237002,0.000109,2]
[340638664,1729579832034,-3779.79855757,0.000109,2]
[340638665,1729579832046,-900.0,0.000109,2]
[340638666,1729579838281,-1150.61,0.000109,2]
[340638667,1729579838415,-560.50565751,0.000109,2]
[340638693,1729579839947,-1109.08578492,0.000109,2]
[340638694,1729579839957,-263.89421508,0.000109,2]
[340638798,1729579843598,-337.66488343,0.000109,2]
[340638799,1729579843648,-531.44000001,0.000109,2]
[340638800,1729579843659,-1127.25798343,0.000109,2]
[340638801,1729579843669,-295.46735037,0.000109,2]
[340638802,1729579843685,-16376.19738234,0.000109,2]
[340638803,1729579843701,-157.82,0.00010959,2]
[340638804,1729579843710,-348.07,0.00010959,2]
[340638805,1729579843720,-150.0,0.00010959,2]
[340638806,1729579843730,-157.81,0.00010959,2]
[340638807,1729579843740,-250.0,0.00010959,2]
[340638808,1729579843750,-289.51899624,0.00010999,2]
[340638809,1729579843759,-2746.86964975,0.00010999,2]
[340638810,1729579843769,-245.5897052,0.00010999,2]
[340638811,1729579843778,-527.0,0.00011,2]
[340638812,1729579843788,-129.56067622,0.00011,2]
[340638819,1729579845946,-8111.6510583,0.00011,2]
[340638820,1729579845959,-744.93,0.00011,2]
[340638821,1729579846124,-3161.19814397,0.00011,2]
[340638822,1729579846721,-29978.62434619,0.00011,2]
[340638823,1729579846732,-279.45979728,0.00011,2]
[340638824,1729579849146,349.21407211,0.00025,120]
[340638825,1729579918863,23900.0,0.00010321,2]
[340638829,1729580041728,250.0,0.0001,2]
[340638831,1729580060219,200.0,0.00010291,2]
[340638833,1729580086292,840.0,0.00010247,2]
[340638835,1729580094432,167.42,8.197e-05,2]
[340638837,1729580113379,250.0,0.00010247,2]
[340638841,1729580165714,250.0,0.00010263,2]
[340638851,1729580235457,153.01,0.00010263,2]
[340638869,1729580401259,150.0,8.353e-05,2]
[340638870,1729580401281,144.78,8.353e-05,2]
[340638872,1729580403280,5.22,0.00010263,2]
[340638873,1729580403303,150.0,0.00010263,2]
[340638874,1729580403324,124.91764627,0.00010263,2]
[340638879,1729580442002,150.0,0.00010271,2]
[340638880,1729580442024,150.0,0.00010271,2]
[340638881,1729580442046,150.0,0.00010271,2]
[340638882,1729580442067,150.0,0.00010271,2]
[340638883,1729580442090,150.0,0.00010271,2]
[340638884,1729580442110,150.0,0.00010271,2]
[340638885,1729580442131,150.0,0.00010271,2]
[340638886,1729580442151,7285.19,0.00010271,2]
[340638887,1729580442173,15564.81,0.00010271,2]
[340638899,1729580546043,200.0,0.00010254,2]
[340638929,1729580686024,150.0,0.00010265,2]
[340638930,1729580686045,100.0,0.00010265,2]
[340638941,1729580774718,1000.0,0.00010213,2]
[340638944,1729580790612,153.01,0.00010228,2]
[340638961,1729580912314,250.0,0.00010277,2]
[340639025,1729580941975,280.04,8.36e-05,2]
[340639055,1729580996446,330.0,0.00018,7]
[340639058,1729581002486,150.0,8.36e-05,2]
[340639059,1729581002673,119.43783591,8.36e-05,2]
[340639060,1729581002695,30.56216409,8.36e-05,2]
[340639061,1729581002858,150.0,8.36e-05,2]
[340639062,1729581003068,150.0,8.36e-05,2]
[340639063,1729581003278,150.0,8.36e-05,2]
[340639064,1729581003477,150.0,8.36e-05,2]
[340639065,1729581003679,150.0,8.36e-05,2]
[340639066,1729581003922,294.92716572,8.36e-05,2]
[340639070,1729581020501,23900.0,0.00010279,2]
[340639081,1729581032064,-150.0,0.00010614,2]
[340639082,1729581032074,-280.04,0.00010623,2]
[340639083,1729581032083,-66.96,0.000109,2]
[340639084,1729581032123,-933.04,0.000109,2]
[340639085,1729581032135,-5431.10751362,0.000109,2]
[340639086,1729581032173,-1863.15207544,0.000109,2]
[340639087,1729581032185,-1405.19134094,0.000109,2]
[340639088,1729581032197,-838.4778,0.000109,2]
[340639089,1729581032318,-501.05567,0.000109,2]
[340639090,1729581032327,-535.38663209,0.000109,2]
[340639098,1729581038524,-1115.85751478,0.000109,2]
[340639099,1729581038538,-1150.61,0.000109,2]
[340639229,1729581040169,-3964.71445313,0.000109,2]
[340639232,1729581040182,-1308.36998824,0.000109,2]
[340639256,1729581040421,-330.0,0.000108,2]
[340639258,1729581040434,-346.08748838,0.000109,2]
[340639476,1729581043185,-664.36824125,0.000109,2]
[340639477,1729581043200,-1979.18188074,0.000109,2]
[340639478,1729581043213,-295.86000036,0.000109,2]
[340639479,1729581043552,-259.4880914,0.000109,2]
[340639480,1729581043567,-2646.64430963,0.000109,2]
[340639481,1729581043580,-1000.0,0.000109,2]
[340639482,1729581043591,-212.1241527,0.000109,2]
[340639483,1729581043602,-379.0894,0.000109,2]
[340639484,1729581043614,-165.6,0.00010959,2]
[340639485,1729581043627,-250.0,0.00010959,2]
[340639486,1729581043639,-278.45,0.00010959,2]
[340639487,1729581043651,-7571.39320213,0.00011,2]
[340639565,1729581046108,-64002.02207683,0.00011,2]
[340639566,1729581046121,-250.10479714,0.00011,2]
[340639567,1729581046134,-431.885,0.00011,2]
[340639568,1729581046149,-5008.17589993,0.00011,2]
[340639569,1729581046247,-12181.45042317,0.00011,2]
[340639587,1729581117218,200.0,0.00010226,2]
[340639609,1729581285144,200.0,0.00010248,2]
[340639617,1729581342207,250.0,0.00010212,2]
[340639631,1729581446890,171.67,0.00010215,2]
[340639636,1729581477416,154.63222705,0.000102,2]
[340639639,1729581492698,250.0,0.00010229,2]
[340639642,1729581509049,303.88,8.32e-05,2]
[340639644,1729581527840,213.74,0.00010221,2]
[340639649,1729581559479,150.0,0.00010213,2]
[340639650,1729581559500,1.0,0.00010213,2]
[340639652,1729581566922,149.0,0.00010213,2]
[340639653,1729581566943,150.0,0.00010213,2]
[340639654,1729581566964,150.0,0.00010213,2]
[340639655,1729581566985,65.92,0.00010213,2]
[340639660,1729581602609,84.08,0.00010213,2]
[340639661,1729581602630,65.92,0.00010213,2]
[340639662,1729581602803,150.0,0.00010213,2]
[340639663,1729581602990,61.88667356,0.00010213,2]
[340639664,1729581603015,88.11332644,0.00010213,2]
[340639665,1729581603207,150.0,0.00010213,2]
[340639666,1729581603402,150.0,0.00010213,2]
[340639667,1729581603852,150.0,0.00010213,2]
[340639668,1729581604049,150.0,0.00010213,2]
[340639669,1729581604360,150.0,0.00010213,2]
[340639670,1729581604583,150.0,0.00010213,2]
[340639671,1729581604831,150.0,0.00010213,2]
[340639672,1729581605058,150.0,0.00010213,2]
[340639673,1729581605505,150.0,0.00010213,2]
[340639674,1729581605740,231.53267251,0.00010213,2]
[340639680,1729581642771,150.0,0.00010221,2]
[340639681,1729581644319,239.7,0.00010221,2]
[340639683,1729581647719,150.0,0.00010221,2]
[340639684,1729581647742,150.0,0.00010221,2]
[340639685,1729581647766,150.0,0.00010221,2]
[340639686,1729581647790,150.0,0.00010221,2]
[340639687,1729581647811,150.0,0.00010221,2]
[340639688,1729581647838,150.0,0.00010221,2]
[340639689,1729581647862,150.0,0.00010221,2]
[340639690,1729581647885,1.14,0.00010221,2]
[340639692,1729581656759,150.0,0.00010217,2]
[340639693,1729581656780,50.0,0.00010217,2]
[340639702,1729581730771,23900.0,0.00010211,2]
[340639706,1729581752545,480.97,0.00010217,2]
[340639709,1729581778068,150.0,0.00010291,2]
[340639710,1729581778089,150.0,0.00010291,2]
[340639711,1729581778109,150.0,0.00010291,2]
[340639712,1729581778129,150.0,0.00010291,2]
[340639713,1729581778150,150.0,0.00010291,2]
[340639714,1729581778170,150.0,0.00010291,2]
[340639715,1729581778190,150.0,0.00010291,2]
[340639716,1729581778212,150.0,0.00010291,2]
[340639717,1729581778236,150.0,0.00010291,2]
[340639718,1729581778256,150.0,0.00010291,2]
[340639719,1729581778277,150.0,0.00010291,2]
[340639720,1729581778297,150.0,0.00010291,2]
[340639721,1729581778318,281.52600566,0.00010291,2]
[340639722,1729581778340,7529.53399434,0.00010291,2]
[340639724,1729581784258,425.42,0.00010213,2]
[340639730,1729581829615,150.0,8.174e-05,2]
[340639731,1729581829637,17.42,8.174e-05,2]
[340639736,1729581855125,840.0,0.00010217,2]
[340639737,1729581861462,250.0,0.0001,2]
[340639741,1729581879890,1838.22,0.00010224,2]
[340639745,1729581904885,250.0,0.00010221,2]
[340639746,1729581910293,562.29,0.00010221,2]
[340639747,1729581919401,2980.63414956,9e-05,2]
[340639748,1729581921425,587.15,0.00010221,2]
[340639750,1729581929407,17922.73118779,0.000101,2]
[340639752,1729581936121,19750.0,9e-05,2]
[340639755,1729581954594,297.87044918,6.94e-05,2]
[340639764,1729582011802,150.0,0.00010213,2]
[340639765,1729582011829,100.0,0.00010213,2]
[340639767,1729582019459,150.0,0.00010203,2]
[340639768,1729582019480,24.06,0.00010203,2]
[340639771,1729582032134,150.0,0.00010181,2]
[340639772,1729582032156,150.0,0.00010181,2]
[340639773,1729582032177,46.5,0.00010181,2]
[340639774,1729582034907,256.83583278,0.00010201,2]
[340639775,1729582034936,482.98416722,0.00010201,2]
[340639776,1729582035104,739.82,0.00010204,2]
[340639777,1729582035531,739.82,0.00010206,2]
[340639778,1729582035740,739.82,0.00010209,2]
[340639779,1729582035949,739.82,0.00010212,2]
[340639780,1729582036170,739.82,0.00010214,2]
[340639781,1729582036398,739.82,0.00010217,2]
[340639782,1729582036639,739.82,0.0001022,2]
[340639783,1729582036843,739.82,0.00010223,2]
[340639784,1729582037055,739.82,0.00010225,2]
[340639785,1729582037273,739.82,0.00010228,2]
[340639786,1729582037479,739.82,0.00010231,2]
[340639787,1729582037684,739.82,0.00010233,2]
[340639788,1729582037887,739.82,0.00010236,2]
[340639789,1729582038118,739.82,0.00010239,2]
[340639790,1729582038536,739.82,0.00010241,2]
[340639791,1729582038986,739.82,0.00010244,2]
[340639792,1729582039021,739.82,0.00010247,2]
[340639794,1729582039152,739.82,0.00010249,2]
[340639795,1729582039357,739.82,0.00010252,2]
[340639796,1729582041728,150.0,0.000101,2]
[340639797,1729582041748,96.53211988,0.000101,2]
[340639804,1729582065566,150.0,8.301e-05,2]
[340639805,1729582065590,216.46,8.301e-05,2]
[340639807,1729582077199,150.0,0.0001,2]
[340639808,1729582077221,6372.8835981,0.0001,2]
[340639809,1729582078408,151.33,0.00010201,2]
[340639813,1729582100278,150.0,0.00010218,2]
[340639814,1729582100300,150.0,0.00010218,2]
[340639815,1729582100322,150.0,0.00010218,2]
[340639816,1729582100344,150.0,0.00010218,2]
[340639817,1729582100365,42.41,0.00010218,2]
[340639820,1729582122873,150.0,0.00010234,2]
[340639821,1729582122895,125.1,0.00010234,2]
[340639824,1729582158454,-150.0,0.00010475,2]
[340639826,1729582165483,150.0,0.00010231,2]
[340639827,1729582165505,50.0,0.00010231,2]
[340639831,1729582203100,150.0,0.00010231,2]
[340639832,1729582203402,150.0,0.00010231,2]
[340639833,1729582203953,150.0,0.00010231,2]
[340639834,1729582204195,150.0,0.00010231,2]
[340639835,1729582204483,150.0,0.00010231,2]
[340639836,1729582204710,150.0,0.00010231,2]
[340639837,1729582204915,150.0,0.00010231,2]
[340639838,1729582205115,150.0,0.00010231,2]
[340639839,1729582205300,150.0,0.00010231,2]
[340639840,1729582205480,150.0,0.00010231,2]
[340639841,1729582205670,150.0,0.00010231,2]
[340639843,1729582205859,150.0,0.00010231,2]
[340639844,1729582206150,150.0,0.00010231,2]
[340639845,1729582206689,150.0,0.00010231,2]
[340639846,1729582206883,150.0,0.00010231,2]
[340639847,1729582207064,150.0,0.00010231,2]
[340639848,1729582207242,150.0,0.00010231,2]
[340639849,1729582207428,150.0,0.00010231,2]
[340639850,1729582207622,150.0,0.00010231,2]
[340639851,1729582207802,150.0,0.00010231,2]
[340639852,1729582207996,150.0,0.00010231,2]
[340639853,1729582208137,65.13690552,0.00010231,2]
[340639861,1729582232296,-150.0,0.00010555,2]
[340639863,1729582232305,-352.90722895,0.00010564,2]
[340639866,1729582232629,-13.55277105,0.00010564,2]
[340639867,1729582232639,-300.0,0.00010899,2]
[340639868,1729582232648,-132.09722893,0.000109,2]
[340639875,1729582238305,-28.04809477,0.000109,2]
[340639877,1729582238316,-357.0158,0.000109,2]
[340639878,1729582238327,-7500.0,0.000109,2]
[340639879,1729582238336,-220.60246218,0.000109,2]
[340639880,1729582238346,-186.0241108,0.000109,2]
[340639881,1729582238356,-2042.07466445,0.000109,2]
[340639882,1729582238367,-253.7732008,0.000109,2]
[340639893,1729582239017,-521.5996,0.000109,2]
[340639895,1729582239030,-2433.39089467,0.000109,2]
[340639897,1729582239040,-2500.0,0.000109,2]
[340639899,1729582239050,-150.81,0.00010959,2]
[340639901,1729582239059,-222.76,0.00010959,2]
[340639903,1729582239069,-150.0,0.00010959,2]
[340639905,1729582239079,-155.7,0.00010959,2]
[340639907,1729582239089,-250.0,0.00010959,2]
[340639909,1729582239098,-109.42010012,0.00010973,2]
[340639917,1729582240292,-390.57989988,0.00010973,2]
[340639918,1729582240303,-3109.86020448,0.00010999,2]
[340639919,1729582240313,-518.0,0.00011,2]
[340639920,1729582240323,-299.99,0.00011,2]
[340639921,1729582240333,-932.27060276,0.00011,2]
[340639925,1729582240453,-615.177,0.00011,2]
[340639929,1729582240487,-0.09309001,0.00011,2]
[340639934,1729582240537,-576.90763634,0.00011,2]
[340640229,1729582243822,-2138.46989828,0.00011,2]
[340640502,1729582246364,-2774.10049161,0.00011,2]
[340640918,1729582282882,-501.87791362,0.000109,2]
[340640919,1729582282903,-5068.12208638,0.000109,2]
[340640923,1729582305526,23900.0,0.000103,2]
[340640931,1729582378694,150.0,0.00010328,2]
[340640932,1729582378720,150.0,0.00010328,2]
[340640933,1729582378746,28.0,0.00010328,2]
[340640937,1729582438199,150.0,0.00010263,2]
[340640938,1729582438222,100.0,0.00010263,2]
[340640946,1729582537549,150.0,0.00010247,2]
[340640947,1729582537572,100.0,0.00010247,2]
[340640948,1729582599458,400.51,8.416e-05,2]
[340640949,1729582714077,150.0,0.00010322,2]
[340640950,1729582714099,50.0,0.00010322,2]
[340640952,1729582853696,150.0,0.00010316,2]
[340640953,1729582853718,150.0,0.00010316,2]
[340640954,1729582853740,279.51372572,0.00010316,2]
[340640955,1729582853761,150.0,0.00010316,2]
[340640956,1729582853785,23170.48627428,0.00010316,2]
[340640957,1729582854796,225.07,0.00010309,2]
[340640958,1729582864963,150.0,0.00010309,2]
[340640959,1729582864988,171.2,0.00010309,2]
[340640960,1729582982749,150.5,0.00013141,120]
[340640961,1729582983631,150.5,0.00013131,120]
[340640962,1729582984289,249.02,0.00013121,120]
[340640963,1729582985563,150.0,0.00010318,2]
[340640964,1729582985584,100.0,0.00010318,2]
[340640965,1729583022006,1000.0,0.0001031,2]
[340640966,1729583094546,150.0,8.4e-05,2]
[340640967,1729583094568,150.0,8.4e-05,2]
[340640968,1729583094590,80.48,8.4e-05,2]
[340640969,1729583100780,500.0,0.0001031,3]
[340640970,1729583112465,150.0,0.00010318,2]
[340640971,1729583112487,106.24,0.00010318,2]
[340640972,1729583153535,11522.0,0.000124,5]
[340640973,1729583168888,150.0,0.0001031,2]
[340640974,1729583168910,100.0,0.0001031,2]
[340640986,1729583357109,150.0,0.00010305,2]
[340640987,1729583357129,279.99667356,0.00010305,2]
[340640988,1729583357151,23470.00332644,0.00010305,2]
[340640989,1729583368477,200.0,0.00010313,2]
[340640990,1729583372418,160.6,0.00010305,2]
[340640991,1729583402976,150.0,0.0001031,2]
[340640992,1729583402997,61.88667356,0.0001031,2]
[340641004,1729583431494,-380.48,0.00010664,2]
[340641005,1729583431503,-1335.316,0.0001078,2]
[340641006,1729583431513,-300.0,0.00010899,2]
[340641007,1729583431523,-608.8406,0.000109,2]
[340641008,1729583431532,-69855.0217,0.000109,2]
[340641009,1729583431542,-7500.0,0.000109,2]
[340641010,1729583431552,-617.0,0.000109,2]
[340641011,1729583431561,-157.81,0.00010959,2]